fUST/lending_fUST_20260611
["ID","MTS","AMOUNT","RATE_DAILY","PERIOD"]
[424821934,1781183431000,-1107.45712945,0.00024257,2]
[424821927,1781183431000,-339.54194663,0.00024257,2]
[424821979,1781183437000,-160.0,0.00024502,2]
[424821983,1781183437000,-400.0,0.00025,5]
[424821978,1781183437000,-3553.00092392,0.00024257,2]
[424821981,1781183437000,-152.0,0.00024999,30]
[424822012,1781183438000,-160.0,0.00027,7]
[424822014,1781183438000,-160.0,0.00027,3]
[424822010,1781183438000,-1001.26807014,0.00026937,2]
[424822016,1781183438000,-160.0,0.00027,7]
[424821990,1781183438000,-600.0,0.00026422,30]
[424821985,1781183438000,-152.0,0.00025066,30]
[424821987,1781183438000,-152.0,0.00025066,30]
[424821992,1781183438000,-1456.01703821,0.00026937,2]
[424821988,1781183438000,-152.0,0.00025187,30]
[424822018,1781183438000,-160.0,0.00027,3]
[424822023,1781183438000,-2457.28510835,0.00027444,2]
[424822019,1781183438000,-160.0,0.00027,7]
[424822033,1781183438000,-209.10338946,0.000279,2]
[424822025,1781183438000,-171.4312456,0.00027893,2]
[424822029,1781183438000,-7103.4879904,0.00027893,2]
[424822031,1781183438000,-2695.8387126,0.00027893,2]
[424822034,1781183438000,-343.78694297,0.000279,7]
[424822035,1781183438000,-343.78694297,0.000279,7]
[424822036,1781183438000,-343.78694297,0.000279,7]
[424822037,1781183438000,-962.79038519,0.0002795,2]
[424822021,1781183438000,-160.0,0.00027,3]
[424822931,1781183446000,-1175.27086959,0.00024014,2]
[424822911,1781183446000,-2500.0,0.00024014,2]
[424823452,1781184632000,-5000.0,0.00019649,9]
[424823454,1781184632000,-248.81654874,0.00023478,2]
[424823457,1781184632000,-510.20343455,0.00025429,2]
[424823451,1781184632000,-2103.6803426,0.00019453,9]
[424823456,1781184632000,-337.57746178,0.00025429,2]
[424823455,1781184632000,-160.0,0.00023765,2]
[424823453,1781184632000,-317.61149657,0.00020453,2]
[424824041,1781184643000,-697.86521966,0.00025429,2]
[424824042,1781184643000,-564.84254135,0.00025429,2]
[424824040,1781184643000,-382.38265803,0.00025429,2]
[424824039,1781184643000,-97.43599665,0.00025429,2]
[424824065,1781184646000,-189.34194316,0.00020553,2]
[424824064,1781184646000,-189.34194316,0.00020453,2]
[424824066,1781184646000,-1411.9313315,0.00025175,9]
[424824078,1781185050000,168.0,0.0002465,30]
[424824079,1781185078000,168.0,0.00024657,30]
[424824114,1781185427000,979.8159587,0.00023421,30]
[424824115,1781185514000,246.99,5e-05,2]
[424824147,1781185832000,-155.1699137,0.00020712,2]
[424824143,1781185832000,-1229.51978514,0.00018707,2]
[424824146,1781185832000,-170.40774883,0.00019087,2]
[424824144,1781185832000,-4096.05787739,0.00018896,2]
[424824145,1781185832000,-903.94212261,0.00018896,2]
[424824142,1781185832000,-2928.93343523,0.00018707,2]
[424824175,1781185838000,-224.64542501,0.00021827,2]
[424824173,1781185838000,-619.47642374,0.00021189,2]
[424824172,1781185838000,-276.50737981,0.00021189,2]
[424824171,1781185838000,-764.88554337,0.00021189,2]
[424824169,1781185838000,-349.49196043,0.00021189,2]
[424824165,1781185838000,-966.18696653,0.00020712,2]
[424824168,1781185838000,-1565.3082771,0.00020712,2]
[424824167,1781185838000,-881.36727314,0.00020712,2]
[424824166,1781185838000,-489.64848508,0.00020712,2]
[424824176,1781185838000,-437.48611838,0.00021827,2]
[424824170,1781185838000,-633.08229834,0.00021189,2]
[424824174,1781185838000,-486.5530955,0.00021189,2]
[424824186,1781185838000,-2661.47692093,0.00022927,2]
[424824184,1781185838000,-229.51978514,0.00022926,2]
[424824178,1781185838000,-313.79908128,0.00021827,2]
[424824181,1781185838000,-500.0,0.00022926,2]
[424824179,1781185838000,-186.35182642,0.00022527,2]
[424824182,1781185838000,-266.51836593,0.00022926,2]
[424824177,1781185838000,-165.79661948,0.00021827,2]
[424824180,1781185838000,-191.43064909,0.00022926,2]
[424824185,1781185838000,-172.84917711,0.00022926,2]
[424824188,1781185838000,-345.45788553,0.00023242,2]
[424824190,1781185838000,-1831.61766876,0.00023487,2]
[424824189,1781185838000,-253.13734113,0.00023478,2]
[424824187,1781185838000,-192.11316068,0.00023242,2]
[424824183,1781185838000,-233.48163407,0.00022926,2]
[424824193,1781185840000,-152.0,0.00023725,2]
[424824195,1781185840000,-1572.82084308,0.00024047,2]
[424824194,1781185840000,-152.0,0.00023725,2]
[424824192,1781185840000,-829.85925214,0.00023487,2]
[424824204,1781185843000,-224.1633437,0.00024093,2]
[424824205,1781185843000,-511.16618502,0.00024607,2]
[424824203,1781185843000,-1088.65607782,0.00024047,2]
[424824233,1781185846000,-2150.31073588,0.00024607,2]
[424824234,1781185846000,-2661.4769209,0.00025167,2]
[424824236,1781185846000,-443.40766743,0.00025426,2]
[424824235,1781185846000,-160.0,0.00025415,2]
[424824237,1781185846000,-1101.5696363,0.00025476,2]
[424824247,1781185846000,-151.773356,0.00025545,2]
[424824249,1781185846000,-5005.2121694,0.00025559,2]
[424824255,1781185846000,-186.568045,0.00025617,2]
[424824246,1781185846000,-151.0,0.00025545,2]
[424824251,1781185846000,-186.568045,0.00025617,2]
[424824238,1781185846000,-210.8963132,0.00025476,2]
[424824239,1781185846000,-218.18715047,0.00025476,2]
[424824242,1781185846000,-152.0,0.00025532,30]
[424824240,1781185846000,-152.0,0.00025485,30]
[424824244,1781185846000,-152.0,0.00025532,30]
[424824259,1781185846000,-438.65045422,0.00025727,2]
[424824257,1781185846000,-186.568045,0.00025617,2]
[424824253,1781185846000,-186.568045,0.00025617,2]
[424824262,1781186367000,259.8695,0.00024657,30]
[424824264,1781186623000,-150.0,0.00011681,9]
[424824266,1781186624000,-150.0,0.00011681,9]
[424824265,1781186624000,-150.0,0.00011681,9]
[424824267,1781186627000,-150.0,0.00011681,9]
[424824268,1781186682000,-150.0,0.00011681,9]
[424824269,1781186683000,-150.0,0.00011681,9]
[424824270,1781186684000,-150.0,0.00011681,9]
[424824271,1781186718000,-150.0,0.00011681,9]
[424824272,1781186719000,-150.0,0.00011681,9]
[424824273,1781186720000,-150.0,0.00011681,9]
[424824274,1781186721000,-150.0,0.00011681,9]
[424824275,1781186774000,-150.0,0.00011681,9]
[424824276,1781186775000,-150.0,0.00011681,9]
[424824277,1781186776000,-150.0,0.00011681,9]
[424824278,1781186777000,-150.0,0.00011681,9]
[424824345,1781187033000,-433.45811007,0.00011564,2]
[424824347,1781187033000,-500.0,0.00011799,2]
[424824346,1781187033000,-4566.54188993,0.00011564,2]
[424824349,1781187033000,-152.20034826,0.00011799,2]
[424824348,1781187033000,-500.0,0.00011799,2]
[424824355,1781187033000,-824.7273025,0.000118,5]
[424824352,1781187033000,-500.0,0.00011799,2]
[424824353,1781187033000,-407.8090021,0.00011799,2]
[424824354,1781187033000,-2321.10788161,0.000118,5]
[424824350,1781187033000,-269.08724583,0.00011799,2]
[424824351,1781187033000,-78.71240591,0.00011799,2]
[424824383,1781187038000,-1355.0346611,0.000118,5]
[424824696,1781187041000,-1410.73952827,0.000118,5]
[424824679,1781187041000,-760.0,0.000118,5]
[424824675,1781187041000,-359.50100004,0.000118,5]
[424824949,1781187043000,-6877.09715211,0.000118,5]
[424824970,1781187043000,-4815.12201136,0.000118,5]
[424824967,1781187043000,-275.77401337,0.000118,5]
[424824947,1781187043000,-5064.92389278,0.000118,5]
[424824972,1781187043000,-173.47107602,0.00011915,7]
[424824976,1781187043000,-428.42094049,0.00013233,14]
[424824978,1781187043000,-3010.04869454,0.0001485,2]
[424824980,1781187043000,-1486.10757335,0.0001485,2]
[424824974,1781187043000,-260.20661404,0.00012615,7]
[424825098,1781187046000,-152.0,0.00025579,30]
[424825094,1781187046000,-152.0,0.00024842,2]
[424825091,1781187046000,-40.57663868,0.00023652,2]
[424825092,1781187046000,-151.0,0.00023652,2]
[424825088,1781187046000,-151.0,0.00021918,2]
[424825089,1781187046000,-152.77232368,0.00022861,2]
[424825087,1781187046000,-317.18523981,0.00020461,2]
[424825084,1781187046000,-2457.14717457,0.00015,2]
[424825086,1781187046000,-271.2,0.00016038,7]
[424825085,1781187046000,-180.8,0.00015147,7]
[424825082,1781187046000,-503.84373211,0.0001485,2]
[424825083,1781187046000,-1198.41830091,0.00015,2]
[424825090,1781187046000,-1898.08761642,0.00023652,2]
[424825096,1781187046000,-160.0,0.00025413,2]
[424825097,1781187046000,-152.0,0.00025528,30]
[424825095,1781187046000,-152.0,0.00025207,2]
[424825112,1781187046000,-763.28464321,0.00026567,2]
[424825106,1781187046000,-565.88958764,0.00026567,2]
[424825103,1781187046000,-763.28464321,0.00026567,2]
[424825105,1781187046000,-197.39505557,0.00026567,2]
[424825107,1781187046000,-763.28464321,0.00026567,2]
[424825102,1781187046000,-763.28464321,0.00026567,2]
[424825104,1781187046000,-763.28464321,0.00026567,2]
[424825100,1781187046000,-236.03590605,0.00026567,2]
[424825110,1781187046000,-763.28464321,0.00026567,2]
[424825109,1781187046000,-763.28464321,0.00026567,2]
[424825108,1781187046000,-763.28464321,0.00026567,2]
[424825101,1781187046000,-763.28464321,0.00026567,2]
[424825099,1781187046000,-152.0,0.00025579,30]
[424825111,1781187046000,-763.28464321,0.00026567,2]
[424825093,1781187046000,-152.0,0.00024706,30]
[424825114,1781187047000,-763.28464321,0.00026567,2]
[424825117,1781187047000,-4451.19470158,0.00026568,2]
[424825116,1781187047000,-763.28464321,0.00026567,2]
[424825115,1781187047000,-763.28464321,0.00026567,2]
[424825113,1781187047000,-763.28464321,0.00026567,2]
[424825123,1781187146000,-284.12275325,0.00017076,14]
[424825124,1781187146000,-4760.4438511,0.00017907,2]
[424825125,1781187147000,177.0174442,0.00017907,2]
[424825130,1781187424000,-175.51396946,0.00012615,7]
[424825131,1781187424000,-175.51396949,0.00013083,7]
[424825128,1781187424000,-175.51396946,0.00011915,7]
[424825129,1781187424000,-175.51396946,0.00012265,7]
[424825127,1781187424000,-175.51396946,0.00011681,7]
[424825132,1781187444000,-152.0,0.00016012,7]
[424825133,1781187444000,-152.0,0.00016038,7]
[424825136,1781187564000,-4750.2070018,0.00020076,2]
[424825135,1781187564000,-249.7929982,0.00019935,7]
[424825137,1781187626000,-152.0,0.00016038,7]
[424825139,1781187626000,-152.0,0.00016089,7]
[424825138,1781187626000,-152.0,0.00016064,7]
[424825140,1781188177000,4080.379,0.00024658,30]
[424825142,1781188233000,-450.5909717,0.00015325,9]
[424825141,1781188233000,-1204.23062129,0.00015325,9]
[424825222,1781188238000,-251.09419272,0.00019935,7]
[424825207,1781188238000,-3345.17840701,0.00015325,9]
[424825211,1781188238000,-152.0,0.00016046,7]
[424825218,1781188238000,-114.46782794,0.00018058,7]
[424825209,1781188238000,-260.65879964,0.0001548,9]
[424825220,1781188238000,-160.0,0.00019665,2]
[424825226,1781188238000,-249.55308634,0.00020462,2]
[424825228,1781188238000,-210.01453361,0.000209,2]
[424825213,1781188238000,-152.0,0.00016054,7]
[424825216,1781188238000,-37.53217206,0.00018058,7]
[424825224,1781188238000,-225.21191108,0.00020462,2]
[424825230,1781188239000,-177.35568317,0.000209,2]
[424825236,1781188239000,-98.17158261,0.00020916,2]
[424825235,1781188239000,-417.15472785,0.00020916,2]
[424825233,1781188239000,-171.88013101,0.000209,2]
[424825534,1781188241000,-25.74123505,0.00018058,7]
[424825855,1781188244000,-1286.87341502,0.00026312,2]
[424825841,1781188244000,-152.0,0.00025066,30]
[424825882,1781188244000,-190.56255697,0.00026939,2]
[424825851,1781188244000,-1286.8734151,0.00026047,2]
[424825847,1781188244000,-166.0,0.00025232,3]
[424825857,1781188244000,-151.0,0.00026552,2]
[424825861,1781188244000,-189.57504327,0.00026567,2]
[424825869,1781188244000,-1000.0,0.00026568,2]
[424825863,1781188244000,-151.0,0.00026568,2]
[424825867,1781188244000,-1000.0,0.00026568,2]
[424825865,1781188244000,-1000.0,0.00026568,2]
[424825853,1781188244000,-172.0,0.00026148,3]
[424825871,1781188244000,-1000.0,0.00026568,2]
[424825874,1781188244000,-1029.54586089,0.00026568,2]
[424825845,1781188244000,-162.962707,0.00025135,2]
[424825843,1781188244000,-152.0,0.00025066,30]
[424825833,1781188244000,-166.0,0.00024186,3]
[424825849,1781188244000,-4760.4438511,0.00025262,2]
[424825811,1781188244000,-126.25876495,0.00018058,7]
[424825813,1781188244000,-152.0,0.00018067,7]
[424825817,1781188244000,-61.82841739,0.00020916,2]
[424825815,1781188244000,-152.0,0.00018067,7]
[424825825,1781188244000,-152.0,0.00021782,2]
[424825823,1781188244000,-300.0,0.00021317,10]
[424825859,1781188244000,-267.53433357,0.00026567,2]
[424825819,1781188244000,-210.01453361,0.000211,2]
[424825831,1781188244000,-152.0,0.00022111,2]
[424825827,1781188244000,-196.31835692,0.00021832,2]
[424825821,1781188244000,-210.01453361,0.000213,2]
[424825837,1781188244000,-166.0,0.00024186,3]
[424825835,1781188244000,-166.0,0.00024186,3]
[424825839,1781188244000,-152.0,0.00025016,30]
[424825829,1781188244000,-510.19428683,0.00022013,2]
[424825878,1781188244000,-1286.87341502,0.00026843,2]
[424825906,1781188244000,-166.52029664,0.00027657,7]
[424825880,1781188244000,-1202.18798481,0.00026935,2]
[424825935,1781188244000,-648.79194673,0.00028041,2]
[424825931,1781188244000,-648.79194673,0.00028041,2]
[424825933,1781188244000,-648.79194673,0.00028041,2]
[424825937,1781188244000,-648.79194673,0.00028041,2]
[424825918,1781188244000,-165.22513424,0.00028041,2]
[424825939,1781188244000,-648.79194673,0.00028041,2]
[424825916,1781188244000,-648.79194673,0.00028041,2]
[424825924,1781188244000,-648.79194673,0.00028041,2]
[424825926,1781188244000,-648.79194673,0.00028041,2]
[424825876,1781188244000,-1286.87341502,0.00026577,2]
[424825941,1781188244000,-648.79194673,0.00028041,2]
[424825943,1781188244000,-648.79194673,0.00028041,2]
[424825947,1781188244000,-8992.41593433,0.00028042,2]
[424825945,1781188244000,-648.79194673,0.00028041,2]
[424825922,1781188244000,-648.79194673,0.00028041,2]
[424825927,1781188244000,-648.79194673,0.00028041,2]
[424825920,1781188244000,-648.79194673,0.00028041,2]
[424825914,1781188244000,-160.0,0.00028,10]
[424825929,1781188244000,-648.79194673,0.00028041,2]
[424825886,1781188244000,-343.98130536,0.00027,2]
[424825890,1781188244000,-1286.87341502,0.00027108,2]
[424825897,1781188244000,-1286.87341502,0.00027373,2]
[424825894,1781188244000,-600.0,0.00027303,30]
[424825892,1781188244000,-406.9624549,0.00027161,7]
[424825899,1781188244000,-167.01990549,0.00027397,30]
[424825884,1781188244000,-241.30356,0.00026941,2]
[424825910,1781188244000,-1286.87341502,0.00027904,2]
[424825908,1781188244000,-403.57110111,0.00027684,2]
[424825912,1781188244000,-160.0,0.00028,10]
[424825888,1781188244000,-151.0,0.000271,2]
[424825902,1781188244000,-151.5,0.00027657,7]
[424825904,1781188244000,-151.5,0.00027657,7]
[424825900,1781188244000,-1286.87341502,0.00027638,2]
[424826209,1781188247000,-21787.95790677,0.00028042,2]
[424826341,1781188312000,-1898.08761642,0.00015226,2]
[424826432,1781189231000,175.0,0.00019652,30]
[424826470,1781189432000,-5000.0,0.00020622,2]
[424826472,1781189432000,-60.58301882,0.0002083,2]
[424826655,1781189438000,-201.04871543,0.00021836,2]
[424826645,1781189438000,-871.71238038,0.0002083,2]
[424826647,1781189438000,-2076.66897054,0.0002083,2]
[424826649,1781189438000,-769.05815496,0.0002093,2]
[424826651,1781189438000,-160.0,0.0002093,2]
[424826653,1781189438000,-210.93117071,0.00021836,120]
[424826662,1781189438000,-152.0,0.00025776,30]
[424826666,1781189438000,-354.0348886,0.00026491,2]
[424826661,1781189438000,-1108.14337502,0.00024,7]
[424826659,1781189438000,-152.0,0.00022139,7]
[424826657,1781189438000,-152.0,0.00022139,7]
[424826668,1781189438000,-7005.726709,0.00026491,2]
[424826664,1781189438000,-1898.0876167,0.00026491,2]
[424827506,1781189446000,-551.47315472,0.00026539,2]
[424827502,1781189446000,-3739.7905728,0.00026491,2]
[424827501,1781189446000,-473.8544365,0.00026491,2]
[424827503,1781189446000,-177.0174442,0.00026491,2]
[424827512,1781189446000,-551.47315472,0.00026539,2]
[424827507,1781189446000,-551.47315472,0.00026539,2]
[424827511,1781189446000,-551.47315472,0.00026539,2]
[424827515,1781189446000,-321.04921828,0.0002654,2]
[424827509,1781189446000,-551.47315472,0.00026539,2]
[424827508,1781189446000,-551.47315472,0.00026539,2]
[424827504,1781189446000,-551.47315472,0.00026539,2]
[424827505,1781189446000,-551.47315472,0.00026539,2]
[424827516,1781189446000,-16016.73813867,0.0002654,2]
[424827513,1781189446000,-551.47315472,0.00026539,2]
[424827514,1781189446000,-551.47315472,0.00026539,2]
[424827510,1781189446000,-551.47315472,0.00026539,2]
[424827555,1781189483000,154.0,0.00021836,120]
[424827595,1781189856000,6039.53148096,7.6e-05,2]
[424827659,1781190231000,154.0,0.00021836,120]
[424827675,1781190420000,5000.0,0.000101,9]
[424827827,1781190632000,-158.0,8.2e-05,8]
[424827828,1781190632000,-2894.5,9.9e-05,2]
[424827829,1781190632000,-765.64988275,9.9e-05,2]
[424827831,1781190632000,-604.645,9.9e-05,2]
[424827834,1781190632000,-294.80051845,0.00022041,2]
[424827832,1781190632000,-449.25586781,9.9e-05,2]
[424827833,1781190632000,-1463.57576156,0.0001,2]
[424827835,1781190632000,-152.0,0.00022565,7]
[424827837,1781190632000,-3363.26160038,0.0002568,2]
[424827836,1781190632000,-460.76289143,0.00023201,2]
[424827830,1781190632000,-285.94924944,9.9e-05,2]
[424827976,1781190638000,-660.69357951,0.00025938,2]
[424827988,1781190638000,-660.69357951,0.00025938,2]
[424827994,1781190638000,-660.69357951,0.00025938,2]
[424827990,1781190638000,-660.69357951,0.00025938,2]
[424827992,1781190638000,-660.69357951,0.00025938,2]
[424828000,1781190638000,-710.24559798,0.00025938,2]
[424828010,1781190638000,-811.05465059,0.00025938,2]
[424827998,1781190638000,-710.24559798,0.00025938,2]
[424828006,1781190638000,-710.24559798,0.00025938,2]
[424828012,1781190638000,-811.05465059,0.00025938,2]
[424827996,1781190638000,-710.24559798,0.00025938,2]
[424827986,1781190638000,-660.69357951,0.00025938,2]
[424827956,1781190638000,-305.09,0.00025423,2]
[424827984,1781190638000,-660.69357951,0.00025938,2]
[424827974,1781190638000,-660.69357951,0.00025938,2]
[424827980,1781190638000,-660.69357951,0.00025938,2]
[424827982,1781190638000,-660.69357951,0.00025938,2]
[424827970,1781190638000,-1356.24714704,0.00025838,2]
[424827966,1781190638000,-1348.02949894,0.0002568,2]
[424827958,1781190638000,-795.18,0.00025423,2]
[424827968,1781190638000,-3558.83263778,0.0002568,2]
[424828008,1781190638000,-811.05465059,0.00025938,2]
[424827961,1781190638000,-3899.73,0.00025423,2]
[424827963,1781190638000,-2358.27,0.0002568,2]
[424827978,1781190638000,-660.69357951,0.00025938,2]
[424828004,1781190638000,-710.24559798,0.00025938,2]
[424827972,1781190638000,-660.69357951,0.00025938,2]
[424828014,1781190638000,-1003.0,0.00025939,3]
[424828002,1781190638000,-710.24559798,0.00025938,2]
[424828065,1781190638000,-911.95972142,0.00025939,3]
[424828061,1781190638000,-1003.0,0.00025939,3]
[424828059,1781190638000,-1003.0,0.00025939,3]
[424828057,1781190638000,-1003.0,0.00025939,3]
[424828054,1781190638000,-1003.0,0.00025939,3]
[424828053,1781190638000,-1003.0,0.00025939,3]
[424828051,1781190638000,-1003.0,0.00025939,3]
[424828048,1781190638000,-1003.0,0.00025939,3]
[424828047,1781190638000,-1003.0,0.00025939,3]
[424828043,1781190638000,-1003.0,0.00025939,3]
[424828045,1781190638000,-1003.0,0.00025939,3]
[424828063,1781190638000,-1003.0,0.00025939,3]
[424828029,1781190638000,-1003.0,0.00025939,3]
[424828037,1781190638000,-1003.0,0.00025939,3]
[424828039,1781190638000,-1003.0,0.00025939,3]
[424828031,1781190638000,-1003.0,0.00025939,3]
[424828041,1781190638000,-1003.0,0.00025939,3]
[424828035,1781190638000,-1003.0,0.00025939,3]
[424828025,1781190638000,-1003.0,0.00025939,3]
[424828033,1781190638000,-1003.0,0.00025939,3]
[424828023,1781190638000,-1003.0,0.00025939,3]
[424828021,1781190638000,-1003.0,0.00025939,3]
[424828019,1781190638000,-1003.0,0.00025939,3]
[424828016,1781190638000,-1003.0,0.00025939,3]
[424828027,1781190638000,-1003.0,0.00025939,3]
[424828280,1781190640000,-653.31352507,0.00025939,3]
[424828271,1781190640000,-91.04027858,0.00025939,3]
[424828276,1781190640000,-1003.0,0.00025939,3]
[424828274,1781190640000,-1003.0,0.00025939,3]
[424828278,1781190640000,-1003.0,0.00025939,3]
[424828284,1781190640000,-1003.0,0.00025939,3]
[424828286,1781190640000,-785.26352507,0.00025939,3]
[424828282,1781190640000,-349.68647493,0.00025939,3]
[424828308,1781190641000,-1003.0,0.00025939,3]
[424828311,1781190641000,-1003.0,0.00025939,3]
[424828310,1781190641000,-1003.0,0.00025939,3]
[424828305,1781190641000,-217.73647493,0.00025939,3]
[424828314,1781190641000,-825.90611503,0.00025939,3]
[424828728,1781190644000,-1003.0,0.00025939,3]
[424828727,1781190644000,-1003.0,0.00025939,3]
[424828725,1781190644000,-1003.0,0.00025939,3]
[424828723,1781190644000,-160.0,0.00025939,3]
[424828738,1781190644000,-160.0,0.00026258,2]
[424828726,1781190644000,-1003.0,0.00025939,3]
[424828722,1781190644000,-177.09388497,0.00025939,3]
[424828724,1781190644000,-1003.0,0.00025939,3]
[424828739,1781190644000,-2000.777101,0.0002664,2]
[424828731,1781190644000,-1003.0,0.00025939,3]
[424828730,1781190644000,-1003.0,0.00025939,3]
[424828740,1781190644000,-5894.7289,0.0002664,2]
[424828736,1781190644000,-1003.0,0.00025939,3]
[424828733,1781190644000,-270.86282089,0.00025939,3]
[424828729,1781190644000,-1003.0,0.00025939,3]
[424828737,1781190644000,-301.16871441,0.00025939,2]
[424828734,1781190644000,-1003.0,0.00025939,3]
[424828732,1781190644000,-732.13717911,0.00025939,3]
[424828735,1781190644000,-1003.0,0.00025939,3]
[424828756,1781190646000,-659.20000001,0.0002664,2]
[424828754,1781190646000,-3348.49068278,0.0002664,2]
[424828753,1781190646000,-68980.425453,0.0002664,2]
[424828752,1781190646000,-607.78994231,0.0002664,2]
[424828751,1781190646000,-5630.33111642,0.0002664,2]
[424828755,1781190646000,-5094.95360547,0.0002664,2]
[424828772,1781190797000,156.0,0.00021842,120]
[424828781,1781190935000,160.21052435,0.00021842,120]
[424828785,1781191368000,151.0,0.00021856,120]
[424828786,1781191416000,264.0,0.00021856,120]
[424828790,1781191743000,509.76,0.00024658,30]
[424828795,1781191832000,-298.44309998,0.00015687,9]
[424828797,1781191832000,-1168.24794728,0.00015687,9]
[424828798,1781191832000,-1871.05853518,0.00015845,9]
[424828796,1781191832000,-3533.30895274,0.00015687,9]
[424828802,1781191832000,-155.96,0.00019102,2]
[424828799,1781191832000,-256.67546219,0.00018322,2]
[424828801,1781191832000,-151.08,0.00018904,2]
[424828800,1781191832000,-151.08,0.0001863,2]
[424828804,1781191832000,-155.96,0.00019202,2]
[424828803,1781191832000,-151.08,0.00019178,2]
[424828807,1781191832000,-151.08,0.00019452,2]
[424828805,1781191832000,-155.96,0.00019302,2]
[424828811,1781191832000,-151.08,0.00019726,2]
[424828808,1781191832000,-155.96,0.00019502,2]
[424828810,1781191832000,-155.96,0.00019702,2]
[424828815,1781191832000,-151.08,0.0002,2]
[424828816,1781191832000,-1000.0,0.0002009,2]
[424828806,1781191832000,-155.96,0.00019402,2]
[424828826,1781191832000,-199.6392576,0.00020472,2]
[424828821,1781191832000,-173.01931641,0.00020286,2]
[424828822,1781191832000,-164.31200972,0.00020286,2]
[424828824,1781191832000,-207.28927707,0.00020417,2]
[424828830,1781191832000,-151.08,0.00020822,2]
[424828832,1781191832000,-85.26398058,0.00020985,2]
[424828820,1781191832000,-151.08,0.00020274,2]
[424828813,1781191832000,-1171.08475278,0.00019936,2]
[424828818,1781191832000,-337.8745744,0.00020143,2]
[424828812,1781191832000,-156.02535998,0.00019802,2]
[424828814,1781191832000,-468.20423422,0.00019936,2]
[424828809,1781191832000,-155.96,0.00019602,2]
[424828828,1781191832000,-151.08,0.00020548,2]
[424829243,1781191841000,-198.63603081,0.00021,2]
[424829240,1781191841000,-160.0,0.00020985,2]
[424829238,1781191841000,-121.11501942,0.00020985,2]
[424829255,1781191841000,-430.74646729,0.000214,2]
[424829241,1781191841000,-612.81491511,0.00021,2]
[424829245,1781191841000,-346.03863282,0.00021023,2]
[424829247,1781191841000,-328.62401944,0.00021023,2]
[424829251,1781191841000,-612.81491511,0.000212,2]
[424829253,1781191841000,-151.08,0.0002137,2]
[424829249,1781191841000,-151.08,0.00021096,2]
[424829830,1781191846000,-500.0,0.00021596,2]
[424829826,1781191846000,-500.0,0.00021596,2]
[424829839,1781191846000,-692.07726564,0.00021842,2]
[424829838,1781191846000,-612.81491511,0.000218,2]
[424829831,1781191846000,-500.0,0.00021596,2]
[424829832,1781191846000,-500.0,0.00021596,2]
[424829835,1781191846000,-612.81491511,0.000216,2]
[424829833,1781191846000,-500.0,0.00021596,2]
[424829836,1781191846000,-151.08,0.00021644,2]
[424829849,1781191846000,-151.08,0.00021918,2]
[424829850,1781191846000,-151.08,0.00022192,2]
[424829842,1781191846000,-152.82025481,0.00021842,2]
[424829845,1781191846000,-307.23100741,0.00021856,2]
[424829843,1781191846000,-363.38117118,0.00021856,2]
[424829851,1781191846000,-210.018472,0.00022274,2]
[424829852,1781191846000,-151.16,0.00022466,2]
[424829840,1781191846000,-280.98947999,0.00021842,2]
[424829829,1781191846000,-500.0,0.00021596,2]
[424829841,1781191846000,-657.24803888,0.00021842,2]
[424829828,1781191846000,-192.76620693,0.00021596,2]
[424829820,1781191846000,-500.0,0.00021596,2]
[424829827,1781191846000,-500.0,0.00021596,2]
[424829808,1781191846000,-3624.13368054,0.00020775,9]
[424829815,1781191846000,-508.14369438,0.00021596,2]
[424829809,1781191846000,-1375.86631946,0.00020775,9]
[424829811,1781191846000,-519.05794923,0.00021514,2]
[424829812,1781191846000,-492.93602916,0.00021514,2]
[424829814,1781191846000,-153.6155037,0.00021529,2]
[424829813,1781191846000,-229.91675523,0.00021514,2]
[424829810,1781191846000,-182.06844782,0.000214,2]